[Event "Reykjavik Chess Congress 2020"]
[Site "Reykjavik"]
[Date "2020.01.05"]
[Round "1.1"]
[White "Gardarsson, Halldor"]
[Black "Kjartansson, Gudmundur"]
[Result "0-1"]
[ECO "B12"]
[WhiteElo "1804"]
[BlackElo "2453"]
[Annotator "ChessBase"]
[PlyCount "78"]
[EventDate "2020.01.05"]
[EventType "swiss"]
[EventCountry "ISL"]
[SourceTitle "playchess.com"]
[Source "ChessBase"]
[SourceQuality "1"]
[TimeControl "40/5400+30:900+30"]

1. e4 {[%emt 0:00:00]} c6 {[%emt 0:00:04]} 2. c4 {[%emt 0:00:10]} d5 {[%emt 0:00:10]} 3. e5 {[%emt 0:01:04]} Bf5 {[%emt 0:10:44]} 4. d4 {[%emt 0:02:46]} e6 {[%emt 0:00:18]} 5. Nc3 {[%emt 0:01:31]} Ne7 {[%emt 0:02:34]} 6. Nf3 {[%emt 0:03:51]} h6 {[%emt 0:01:48]} 7. Bd3 {[%emt 0:01:05]} Bxd3 {[%emt 0:05:58]} 8. Qxd3 {[%emt 0:00:17]} dxc4 {[%emt 0:00:59]} 9. Qxc4 {[%emt 0:00:24]} Na6 {[%emt 0:01:21]} 10. a3 {[%emt 0:01:35]} Nc7 {[%emt 0:02:40]} 11. Be3 {[%emt 0:04:54]} Ned5 {[%emt 0:01:06]} 12. Nxd5 {[%emt 0:02:16]} Nxd5 {[%emt 0:02:42]} 13. O-O {[%emt 0:00:37]} Be7 {[%emt 0:00:08]} 14. Rac1 {[%emt 0:04:55]} O-O {[%emt 0:03:28]} 15. Rc2 {[%emt 0:02:11]} Qb6 {[%emt 0:02:40]} 16. Qd3 {[%emt 0:03:59]} Rfd8 {[%emt 0:00:30]} 17. Nd2 {[%emt 0:01:25]} Rd7 {[%emt 0:06:19]} 18. Qb3 {[%emt 0:01:44]} Rad8 {[%emt 0:03:44]} 19. Qxb6 {[%emt 0:06:04]} axb6 {[%emt 0:00:30]} 20. Ne4 {[%emt 0:00:14]} b5 {[%emt 0:02:02]} 21. Rfc1 {[%emt 0:05:25]} Ra8 {[%emt 0:05:10]} 22. Nc5 {[%emt 0:05:13]} Bxc5 {[%emt 0:02:35]} 23. Rxc5 {[%emt 0:00:52]} Ra4 {[%emt 0:01:17]} 24. Kf1 {[%emt 0:02:04]} Rd8 {[%emt 0:00:43]} 25. Rd1 {[%emt 0:03:19]} Nb6 {[%emt 0:04:19]} 26. Ke2 {[%emt 0:05:43]} b4 {[%emt 0:01:08]} 27. Rd3 {[%emt 0:04:08]} Rda8 {[%emt 0:00:27]} 28. Rb3 {[%emt 0:00:50]} bxa3 {[%emt 0:04:46]} 29. bxa3 {[%emt 0:03:03]} R8a6 {[%emt 0:00:11]} 30. Bc1 {[%emt 0:01:17]} Rxd4 {[%emt 0:02:26]} 31. Be3 {[%emt 0:01:02]} Rd7 {[%emt 0:00:59]} 32. Rxc6 {[%emt 0:03:57]} bxc6 {[%emt 0:00:12]} 33. Rxb6 {[%emt 0:00:17]} Rxa3 {[%emt 0:01:47]} 34. Rxc6 {[%emt 0:00:18]} Rd5 {[%emt 0:00:20]} 35. f4 {[%emt 0:03:22]} g5 {[%emt 0:07:22]} 36. Rc4 {[%emt 0:02:52]} g4 {[%emt 0:00:33]} 37. Bf2 {[%emt 0:01:10]} Ra2+ {[%emt 0:00:48]} 38. Ke3 {[%emt 0:00:40]} Rdd2 {[%emt 0:00:40]} 39. Bh4 {[%emt 0:01:03]} Re2+ {[%emt 0:01:05]} 0-1

[Event "Reykjavik Chess Congress 2020"]
[Site "Reykjavik"]
[Date "2020.01.05"]
[Round "1.3"]
[White "Geirsson, Kristjan"]
[Black "Bjornsson, Sigurbjorn"]
[Result "0-1"]
[ECO "B76"]
[WhiteElo "1709"]
[BlackElo "2331"]
[Annotator "ChessBase"]
[PlyCount "36"]
[EventDate "2020.01.05"]
[EventType "swiss"]
[EventCountry "ISL"]
[SourceTitle "playchess.com"]
[Source "ChessBase"]
[SourceQuality "1"]
[TimeControl "40/5400+30:900+30"]

1. e4 {[%emt 0:00:00]} c5 {[%emt 0:00:00]} 2. Nf3 {[%emt 0:00:30]} d6 {[%emt 0:00:30]} 3. d4 {[%emt 0:00:30]} cxd4 {[%emt 0:00:30]} 4. Nxd4 {[%emt 0:00:30]} Nf6 {[%emt 0:00:30]} 5. Nc3 {[%emt 0:00:30]} g6 {[%emt 0:01:36]} 6. Bc4 {[%emt 0:00:00]} Bg7 {[%emt 0:00:00]} 7. Be3 {[%emt 0:00:00]} Nc6 {[%emt 0:00:00]} 8. f3 {[%emt 0:01:32]} O-O {[%emt 0:00:00]} 9. a3 {[%emt 0:05:06]} Bd7 {[%emt 0:00:00]} 10. Qd2 {[%emt 0:00:52]} Rc8 {[%emt 0:00:00]} 11. Ba2 {[%emt 0:00:45]} Ne5 {[%emt 0:01:46]} 12. O-O {[%emt 0:06:44]} Nc4 {[%emt 0:01:47]} 13. Bxc4 {[%emt 0:00:15]} Rxc4 {[%emt 0:00:02]} 14. Rad1 {[%emt 0:02:31]} a6 {[%emt 0:02:41]} 15. Bh6 {[%emt 0:03:58]} Rxd4 {[%emt 0:04:08]} 16. Qxd4 {[%emt 0:12:43]} Bxh6 {[%emt 0:00:25]} 17. e5 {[%emt 0:00:41]} dxe5 {[%emt 0:01:39]} 18. Qxe5 {[%emt 0:00:14]} Qb6+ {[%emt 0:01:24]} 0-1

[Event "Reykjavik Chess Congress 2020"]
[Site "Reykjavik"]
[Date "2020.01.05"]
[Round "1.5"]
[White "Helgason, Jon Thor"]
[Black "Briem, Stephan"]
[Result "1/2-1/2"]
[ECO "B01"]
[WhiteElo "1672"]
[BlackElo "2197"]
[Annotator "ChessBase"]
[PlyCount "82"]
[EventDate "2020.01.05"]
[EventType "swiss"]
[EventCountry "ISL"]
[SourceTitle "playchess.com"]
[Source "ChessBase"]
[SourceQuality "1"]
[TimeControl "40/5400+30:900+30"]

1. e4 {[%emt 0:00:00]} d5 {[%emt 0:00:06]} 2. exd5 {[%emt 0:02:12]} Qxd5 {[%emt 0:00:30]} 3. d4 {[%emt 0:00:30]} Nf6 {[%emt 0:04:13]} 4. c4 {[%emt 0:00:50]} Qd8 {[%emt 0:01:43]} 5. Be2 {[%emt 0:01:47]} Bf5 {[%emt 0:00:30]} 6. Nf3 {[%emt 0:02:07]} e6 {[%emt 0:01:04]} 7. Qb3 {[%emt 0:03:00]} Qc8 {[%emt 0:04:28]} 8. Nc3 {[%emt 0:00:30]} c6 {[%emt 0:02:14]} 9. Nh4 {[%emt 0:05:55]} Bg6 {[%emt 0:06:31]} 10. d5 {[%emt 0:03:20]} exd5 {[%emt 0:09:56]} 11. cxd5 {[%emt 0:00:59]} Bd6 {[%emt 0:06:56]} 12. Bg5 {[%emt 0:03:45]} Nbd7 {[%emt 0:04:08]} 13. dxc6 {[%emt 0:08:02]} bxc6 {[%emt 0:01:48]} 14. Nxg6 {[%emt 0:05:19]} hxg6 {[%emt 0:00:31]} 15. h3 {[%emt 0:02:11]} O-O {[%emt 0:03:38]} 16. O-O {[%emt 0:00:30]} Rb8 {[%emt 0:03:08]} 17. Qc2 {[%emt 0:00:38]} Nc5 {[%emt 0:04:38]} 18. Be3 {[%emt 0:10:15]} Qc7 {[%emt 0:02:52]} 19. Bc4 {[%emt 0:02:10]} Nfd7 {[%emt 0:06:12]} 20. Ne2 {[%emt 0:04:22]} Ne5 {[%emt 0:11:04]} 21. b3 {[%emt 0:02:18]} Nxc4 {[%emt 0:01:48]} 22. Qxc4 {[%emt 0:02:42]} Ne6 {[%emt 0:01:33]} 23. Nd4 {[%emt 0:01:12]} Nxd4 {[%emt 0:03:17]} 24. Bxd4 {[%emt 0:00:49]} Rb4 {[%emt 0:05:06]} 25. Qc3 {[%emt 0:00:30]} Rxd4 {[%emt 0:01:47]} 26. Qxd4 {[%emt 0:00:30]} Bh2+ {[%emt 0:00:30]} 27. Kh1 {[%emt 0:00:30]} Be5 {[%emt 0:00:30]} 28. Qe3 {[%emt 0:01:48]} Bxa1 {[%emt 0:00:59]} 29. Rxa1 {[%emt 0:00:30]} Qa5 {[%emt 0:03:26]} 30. Qe1 {[%emt 0:00:54]} Qa6 {[%emt 0:02:16]} 31. Qe7 {[%emt 0:02:53]} Qb6 {[%emt 0:04:13]} 32. Qe3 {[%emt 0:00:30]} Rd8 {[%emt 0:00:51]} 33. Rc1 {[%emt 0:02:55]} Qxe3 {[%emt 0:02:42]} 34. fxe3 {[%emt 0:00:30]} Rd6 {[%emt 0:01:02]} 35. Rc2 {[%emt 0:01:12]} Kf8 {[%emt 0:00:30]} 36. Kg1 {[%emt 0:00:30]} Ke7 {[%emt 0:00:30]} 37. Kf2 {[%emt 0:00:30]} Kd7 {[%emt 0:00:30]} 38. Ke2 {[%emt 0:00:30]} Kc7 {[%emt 0:00:40]} 39. Rc4 {[%emt 0:00:30]} Kb6 {[%emt 0:00:30]} 40. Rd4 {[%emt 0:01:23]} Rxd4 {[%emt 0:00:37]} 41. exd4 {[%emt 0:15:30]} Kb5 {[%emt 0:15:30]} 1/2-1/2

[Event "Reykjavik Chess Congress 2020"]
[Site "Reykjavik"]
[Date "2020.01.05"]
[Round "1.6"]
[White "Olafsson, Thorvardur"]
[Black "Ulfljotsson, Jon"]
[Result "1-0"]
[ECO "B55"]
[WhiteElo "2188"]
[BlackElo "1672"]
[Annotator "ChessBase"]
[PlyCount "69"]
[EventDate "2020.01.05"]
[EventType "swiss"]
[EventCountry "ISL"]
[SourceTitle "playchess.com"]
[Source "ChessBase"]
[SourceQuality "1"]
[TimeControl "40/5400+30:900+30"]

1. e4 {[%emt 0:00:00]} c5 {[%emt 0:00:00]} 2. Nf3 {[%emt 0:00:00]} d6 {[%emt 0:00:00]} 3. d4 {[%emt 0:00:00]} cxd4 {[%emt 0:00:12]} 4. Nxd4 {[%emt 0:00:08]} Nf6 {[%emt 0:00:20]} 5. f3 {[%emt 0:01:05]} e5 {[%emt 0:02:19]} 6. Nb3 {[%emt 0:00:08]} Be6 {[%emt 0:00:43]} 7. c4 {[%emt 0:01:08]} Nc6 {[%emt 0:02:46]} 8. Be3 {[%emt 0:01:22]} a5 {[%emt 0:01:24]} 9. Nc3 {[%emt 0:00:58]} Be7 {[%emt 0:05:22]} 10. Be2 {[%emt 0:01:04]} O-O {[%emt 0:02:05]} 11. O-O {[%emt 0:00:17]} a4 {[%emt 0:03:44]} 12. Nd2 {[%emt 0:00:32]} Qa5 {[%emt 0:03:32]} 13. Nd5 {[%emt 0:03:51]} Bxd5 {[%emt 0:02:41]} 14. cxd5 {[%emt 0:01:52]} Nd4 {[%emt 0:06:22]} 15. Nc4 {[%emt 0:06:11]} Nxe2+ {[%emt 0:04:21]} 16. Qxe2 {[%emt 0:00:10]} Qa6 {[%emt 0:03:02]} 17. Rfe1 {[%emt 0:06:24]} Nd7 {[%emt 0:08:15]} 18. Na3 {[%emt 0:04:50]} Qxe2 {[%emt 0:09:43]} 19. Rxe2 {[%emt 0:00:13]} Rfc8 {[%emt 0:00:06]} 20. Rc2 {[%emt 0:07:13]} Rxc2 {[%emt 0:05:25]} 21. Nxc2 {[%emt 0:00:04]} Rc8 {[%emt 0:00:24]} 22. Rc1 {[%emt 0:01:05]} Bd8 {[%emt 0:05:44]} 23. Na3 {[%emt 0:02:18]} Rxc1+ {[%emt 0:01:15]} 24. Bxc1 {[%emt 0:00:08]} Bb6+ {[%emt 0:00:13]} 25. Kf1 {[%emt 0:00:16]} Bc5 {[%emt 0:01:43]} 26. Nb5 {[%emt 0:00:52]} Kf8 {[%emt 0:02:34]} 27. Ke2 {[%emt 0:00:43]} Ke7 {[%emt 0:01:30]} 28. Bd2 {[%emt 0:07:19]} Nb8 {[%emt 0:03:56]} 29. Nc3 {[%emt 0:06:04]} a3 {[%emt 0:06:06]} 30. b3 {[%emt 0:05:15]} Na6 {[%emt 0:02:01]} 31. Nb5 {[%emt 0:01:02]} b6 {[%emt 0:04:14]} 32. h3 {[%emt 0:03:13]} Kd7 {[%emt 0:01:44]} 33. Kd3 {[%emt 0:01:23]} g6 {[%emt 0:08:21]} 34. Kc4 {[%emt 0:00:42]} f5 {[%emt 0:00:57]} 35. b4 {[%emt 0:00:46]} 1-0

[Event "Reykjavik Chess Congress 2020"]
[Site "Reykjavik"]
[Date "2020.01.12"]
[Round "3.2"]
[White "Briem, Benedikt"]
[Black "Bjornsson, Sigurbjorn"]
[Result "0-1"]
[ECO "D00"]
[WhiteElo "1841"]
[BlackElo "2331"]
[Annotator "ChessBase"]
[PlyCount "74"]
[EventDate "2020.01.05"]
[EventType "swiss"]
[EventCountry "ISL"]
[SourceTitle "playchess.com"]
[Source "ChessBase"]
[SourceQuality "1"]
[TimeControl "40/5400+30:900+30"]

1. d4 {[%emt 0:00:00]} Nf6 {[%emt 0:00:00]} 2. Nc3 {[%emt 0:00:00]} d5 {[%emt 0:00:00]} 3. Bf4 {[%emt 0:00:14]} c6 {[%emt 0:00:13]} 4. e3 {[%emt 0:00:40]} Bf5 {[%emt 0:01:49]} 5. f3 {[%emt 0:00:47]} e6 {[%emt 0:00:40]} 6. g4 {[%emt 0:00:38]} Bg6 {[%emt 0:00:04]} 7. h4 {[%emt 0:00:35]} h5 {[%emt 0:01:06]} 8. g5 {[%emt 0:01:00]} Nfd7 {[%emt 0:00:07]} 9. Bd3 {[%emt 0:00:43]} Bxd3 {[%emt 0:00:26]} 10. Qxd3 {[%emt 0:00:37]} g6 {[%emt 0:00:20]} 11. Kf2 {[%emt 0:05:50]} Qb6 {[%emt 0:06:27]} 12. Nge2 {[%emt 0:07:18]} Be7 {[%emt 0:03:12]} 13. Bg3 {[%emt 0:11:06]} c5 {[%emt 0:02:01]} 14. Na4 {[%emt 0:02:17]} Qc6 {[%emt 0:11:03]} 15. Nxc5 {[%emt 0:01:44]} Nxc5 {[%emt 0:00:22]} 16. dxc5 {[%emt 0:00:25]} Bxc5 {[%emt 0:01:51]} 17. Be5 {[%emt 0:04:34]} O-O {[%emt 0:02:18]} 18. Nf4 {[%emt 0:14:33]} Qa6 {[%emt 0:00:47]} 19. Qc3 {[%emt 0:06:13]} Qb6 {[%emt 0:10:38]} 20. Rad1 {[%emt 0:12:16]} Nc6 {[%emt 0:02:18]} 21. Bf6 {[%emt 0:03:52]} Ne7 {[%emt 0:08:39]} 22. Bxe7 {[%emt 0:09:22]} Bxe7 {[%emt 0:00:10]} 23. Qd3 {[%emt 0:05:22]} Kg7 {[%emt 0:04:30]} 24. Rhg1 {[%emt 0:01:20]} Rfc8 {[%emt 0:04:45]} 25. b3 {[%emt 0:03:16]} Qc5 {[%emt 0:03:00]} 26. Rd2 {[%emt 0:01:21]} b5 {[%emt 0:02:05]} 27. Ne2 {[%emt 0:03:25]} b4 {[%emt 0:03:37]} 28. Qd4+ {[%emt 0:02:23]} Qxd4 {[%emt 0:01:38]} 29. exd4 {[%emt 0:00:44]} Rc6 {[%emt 0:00:49]} 30. Nf4 {[%emt 0:01:04]} Rac8 {[%emt 0:01:20]} 31. Rc1 {[%emt 0:00:28]} f6 {[%emt 0:10:37]} 32. Re2 {[%emt 0:01:14]} Kf7 {[%emt 0:00:37]} 33. gxf6 {[%emt 0:00:37]} Bxf6 {[%emt 0:00:10]} 34. Rd2 {[%emt 0:00:16]} Bxh4+ {[%emt 0:00:23]} 35. Ke3 {[%emt 0:00:44]} Bg5 {[%emt 0:00:32]} 36. Rg2 {[%emt 0:00:15]} Rc3+ {[%emt 0:00:20]} 37. Ke2 {[%emt 0:00:45]} Bxf4 {[%emt 0:00:05]} 0-1

[Event "Reykjavik Chess Congress 2020"]
[Site "Reykjavik"]
[Date "2020.01.12"]
[Round "3.4"]
[White "Mai, Aron Thor"]
[Black "Bjarnason, Olafur"]
[Result "1-0"]
[ECO "C45"]
[WhiteElo "2167"]
[BlackElo "1815"]
[Annotator "ChessBase"]
[PlyCount "83"]
[EventDate "2020.01.05"]
[EventType "swiss"]
[EventCountry "ISL"]
[SourceTitle "playchess.com"]
[Source "ChessBase"]
[SourceQuality "1"]
[TimeControl "40/5400+30:900+30"]

1. e4 {[%emt 0:00:00]} e5 {[%emt 0:00:00]} 2. Nf3 {[%emt 0:00:00]} Nc6 {[%emt 0:00:01]} 3. d4 {[%emt 0:00:00]} exd4 {[%emt 0:00:40]} 4. Nxd4 {[%emt 0:00:05]} Nxd4 {[%emt 0:01:31]} 5. Qxd4 {[%emt 0:00:07]} d6 {[%emt 0:00:58]} 6. Nc3 {[%emt 0:01:00]} a6 {[%emt 0:02:19]} 7. Bf4 {[%emt 0:00:43]} Be6 {[%emt 0:01:55]} 8. O-O-O {[%emt 0:00:39]} Ne7 {[%emt 0:01:59]} 9. f3 {[%emt 0:01:32]} Nc6 {[%emt 0:01:41]} 10. Qd2 {[%emt 0:00:13]} Qd7 {[%emt 0:02:47]} 11. Nd5 {[%emt 0:02:56]} O-O-O {[%emt 0:01:54]} 12. Qc3 {[%emt 0:04:44]} f6 {[%emt 0:01:33]} 13. Kb1 {[%emt 0:01:37]} Bxd5 {[%emt 0:03:36]} 14. exd5 {[%emt 0:00:15]} Nb8 {[%emt 0:02:42]} 15. h4 {[%emt 0:01:27]} Rg8 {[%emt 0:01:08]} 16. h5 {[%emt 0:07:19]} Qf7 {[%emt 0:03:02]} 17. g4 {[%emt 0:01:08]} Be7 {[%emt 0:04:38]} 18. Qd4 {[%emt 0:11:41]} g6 {[%emt 0:05:07]} 19. h6 {[%emt 0:00:32]} Rde8 {[%emt 0:04:13]} 20. Bd3 {[%emt 0:04:33]} b6 {[%emt 0:03:58]} 21. a4 {[%emt 0:01:16]} Kb7 {[%emt 0:01:00]} 22. a5 {[%emt 0:00:35]} Rc8 {[%emt 0:01:46]} 23. Be3 {[%emt 0:05:11]} Bd8 {[%emt 0:01:33]} 24. f4 {[%emt 0:01:33]} Nd7 {[%emt 0:03:01]} 25. Qc4 {[%emt 0:01:05]} Nb8 {[%emt 0:00:41]} 26. Bf1 {[%emt 0:01:27]} Re8 {[%emt 0:01:38]} 27. Bf2 {[%emt 0:00:43]} f5 {[%emt 0:03:54]} 28. g5 {[%emt 0:01:32]} Re4 {[%emt 0:00:30]} 29. Rd4 {[%emt 0:00:20]} Rxd4 {[%emt 0:02:00]} 30. Qxd4 {[%emt 0:00:25]} Qd7 {[%emt 0:01:03]} 31. Rh3 {[%emt 0:04:07]} c5 {[%emt 0:06:05]} 32. dxc6+ {[%emt 0:06:26]} Qxc6 {[%emt 0:02:19]} 33. Qd2 {[%emt 0:01:42]} Nd7 {[%emt 0:05:52]} 34. Bxb6 {[%emt 0:10:54]} Nxb6 {[%emt 0:01:25]} 35. Bg2 {[%emt 0:01:00]} d5 {[%emt 0:00:12]} 36. axb6 {[%emt 0:01:37]} Kb8 {[%emt 0:00:49]} 37. Bxd5 {[%emt 0:01:44]} Qc5 {[%emt 0:00:11]} 38. Ra3 {[%emt 0:02:00]} Bxb6 {[%emt 0:02:03]} 39. Rxa6 {[%emt 0:01:12]} Ba7 {[%emt 0:00:36]} 40. Ra5 {[%emt 0:00:00]} Qg1+ {[%emt 0:00:00]} 41. Ka2 {[%emt 0:01:34]} Rc5 {[%emt 0:02:28]} 42. Qb4+ {[%emt 0:00:55]} 1-0

[Event "Reykjavik Chess Congress 2020"]
[Site "Reykjavik"]
[Date "2020.01.12"]
[Round "3.5"]
[White "Kjartansson, David"]
[Black "Halldorsson, Bragi"]
[Result "1-0"]
[ECO "D36"]
[WhiteElo "2356"]
[BlackElo "2089"]
[Annotator "ChessBase"]
[PlyCount "149"]
[EventDate "2020.01.05"]
[EventType "swiss"]
[EventCountry "ISL"]
[SourceTitle "playchess.com"]
[Source "ChessBase"]
[SourceQuality "1"]
[TimeControl "40/5400+30:900+30"]

1. d4 {[%emt 0:02:37]} c6 {[%emt 0:01:19]} 2. c4 {[%emt 0:00:08]} d5 {[%emt 0:00:17]} 3. Nc3 {[%emt 0:00:06]} Nf6 {[%emt 0:00:10]} 4. Nf3 {[%emt 0:00:08]} e6 {[%emt 0:00:20]} 5. Bg5 {[%emt 0:01:14]} Nbd7 {[%emt 0:00:17]} 6. cxd5 {[%emt 0:03:20]} exd5 {[%emt 0:00:34]} 7. e3 {[%emt 0:00:07]} Bd6 {[%emt 0:00:16]} 8. Bd3 {[%emt 0:00:10]} O-O {[%emt 0:00:21]} 9. Qc2 {[%emt 0:00:09]} h6 {[%emt 0:04:21]} 10. Bh4 {[%emt 0:00:07]} Re8 {[%emt 0:00:15]} 11. O-O {[%emt 0:00:11]} Nf8 {[%emt 0:01:32]} 12. Rfe1 {[%emt 0:03:31]} Bg4 {[%emt 0:00:16]} 13. Nd2 {[%emt 0:00:53]} Be7 {[%emt 0:05:08]} 14. Rab1 {[%emt 0:08:27]} a5 {[%emt 0:04:16]} 15. a3 {[%emt 0:00:24]} Rc8 {[%emt 0:01:22]} 16. b4 {[%emt 0:00:49]} axb4 {[%emt 0:00:12]} 17. axb4 {[%emt 0:00:07]} Bh5 {[%emt 0:02:24]} 18. Bf5 {[%emt 0:01:05]} Bg6 {[%emt 0:00:13]} 19. Bg3 {[%emt 0:00:49]} Bd6 {[%emt 0:00:52]} 20. Na4 {[%emt 0:04:40]} Bxg3 {[%emt 0:02:15]} 21. hxg3 {[%emt 0:00:13]} Bxf5 {[%emt 0:00:40]} 22. Qxf5 {[%emt 0:00:09]} b5 {[%emt 0:01:08]} 23. Nc5 {[%emt 0:00:40]} Ne6 {[%emt 0:00:35]} 24. Ndb3 {[%emt 0:00:29]} Ng5 {[%emt 0:01:26]} 25. Rec1 {[%emt 0:02:03]} g6 {[%emt 0:00:20]} 26. Qf4 {[%emt 0:10:10]} Nh5 {[%emt 0:00:52]} 27. Qg4 {[%emt 0:02:39]} Nf6 {[%emt 0:00:45]} 28. Qe2 {[%emt 0:01:05]} Nge4 {[%emt 0:03:09]} 29. Nd2 {[%emt 0:07:05]} Nxd2 {[%emt 0:03:31]} 30. Qxd2 {[%emt 0:00:06]} Ng4 {[%emt 0:00:24]} 31. Nd3 {[%emt 0:02:19]} Qg5 {[%emt 0:04:22]} 32. Nf4 {[%emt 0:00:41]} h5 {[%emt 0:00:15]} 33. Rb3 {[%emt 0:02:49]} Nf6 {[%emt 0:02:28]} 34. Qe1 {[%emt 0:08:02]} Ne4 {[%emt 0:04:23]} 35. Rb2 {[%emt 0:06:41]} Nd6 {[%emt 0:02:25]} 36. Ra2 {[%emt 0:05:58]} h4 {[%emt 0:01:26]} 37. gxh4 {[%emt 0:04:37]} Qxh4 {[%emt 0:00:09]} 38. g3 {[%emt 0:14:48]} Qe7 {[%emt 0:04:00]} 39. Qd1 {[%emt 0:02:19]} Kg7 {[%emt 0:01:04]} 40. Qf3 {[%emt 0:00:00]} Nc4 {[%emt 0:00:00]} 41. Nd3 {[%emt 0:03:20]} Rh8 {[%emt 0:01:03]} 42. Rca1 {[%emt 0:00:41]} Rh5 {[%emt 0:02:42]} 43. Ra7 {[%emt 0:04:19]} Rc7 {[%emt 0:00:27]} 44. Ra8 {[%emt 0:03:14]} Nd2 {[%emt 0:01:27]} 45. Qg2 {[%emt 0:08:00]} Rf5 {[%emt 0:05:12]} 46. Nf4 {[%emt 0:01:02]} Rxf4 {[%emt 0:21:19]} 47. gxf4 {[%emt 0:00:23]} Qh4 {[%emt 0:03:58]} 48. R8a2 {[%emt 0:02:40]} Ne4 {[%emt 0:00:19]} 49. f3 {[%emt 0:00:40]} Nd6 {[%emt 0:01:15]} 50. Qh2 {[%emt 0:00:18]} Qe7 {[%emt 0:00:50]} 51. Kf2 {[%emt 0:01:15]} Nf5 {[%emt 0:00:54]} 52. Re2 {[%emt 0:00:25]} Ra7 {[%emt 0:02:48]} 53. Rh1 {[%emt 0:00:19]} Ra8 {[%emt 0:00:09]} 54. Qh7+ {[%emt 0:00:38]} Kf6 {[%emt 0:00:11]} 55. Rc1 {[%emt 0:01:18]} Rc8 {[%emt 0:02:16]} 56. e4 {[%emt 0:00:33]} dxe4 {[%emt 0:01:00]} 57. fxe4 {[%emt 0:00:12]} Nxd4 {[%emt 0:02:01]} 58. Qh4+ {[%emt 0:00:28]} Ke6 {[%emt 0:00:52]} 59. Qh3+ {[%emt 0:00:57]} Kd6 {[%emt 0:00:22]} 60. e5+ {[%emt 0:01:10]} Kc7 {[%emt 0:00:13]} 61. Ra2 {[%emt 0:00:17]} Rb8 {[%emt 0:00:26]} 62. Ra7+ {[%emt 0:00:31]} Rb7 {[%emt 0:00:12]} 63. Ra8 {[%emt 0:01:15]} Ne6 {[%emt 0:00:25]} 64. Qh8 {[%emt 0:00:19]} Qd7 {[%emt 0:00:47]} 65. Rc8+ {[%emt 0:00:45]} Kb6 {[%emt 0:01:45]} 66. R1xc6+ {[%emt 0:00:27]} Qxc6 67. Rxc6+ {[%emt 0:00:04]} Kxc6 {[%emt 0:00:27]} 68. Ke3 {[%emt 0:00:48]} Kb6 {[%emt 0:00:34]} 69. Qa8 {[%emt 0:00:16]} Nc7 {[%emt 0:01:43]} 70. Qa2 {[%emt 0:00:28]} Ne6 {[%emt 0:00:50]} 71. Qa5+ {[%emt 0:00:12]} Kc6 {[%emt 0:00:31]} 72. Qa6+ {[%emt 0:00:14]} Rb6 {[%emt 0:01:01]} 73. Qc8+ {[%emt 0:00:16]} Nc7 {[%emt 0:00:45]} 74. Qf8 {[%emt 0:00:28]} Rb7 {[%emt 0:00:47]} 75. Qd6# {[%emt 0:00:00] Ne6 Qf8 Kc7 Qe7+ Kb8 Qf8+ Rb6} 1-0

[Event "Reykjavik Chess Congress 2020"]
[Site "Reykjavik"]
[Date "2020.01.12"]
[Round "3.6"]
[White "Thorisson, Benedikt"]
[Black "Briem, Stephan"]
[Result "0-1"]
[ECO "B90"]
[WhiteElo "1598"]
[BlackElo "2197"]
[Annotator "ChessBase"]
[PlyCount "112"]
[EventDate "2020.01.05"]
[EventType "swiss"]
[EventCountry "ISL"]
[SourceTitle "playchess.com"]
[Source "ChessBase"]
[SourceQuality "1"]
[TimeControl "40/5400+30:900+30"]

1. e4 {[%emt 0:00:00]} c5 {[%emt 0:00:00]} 2. Nf3 {[%emt 0:00:00]} d6 {[%emt 0:00:00]} 3. d4 {[%emt 0:00:00]} cxd4 {[%emt 0:00:00]} 4. Nxd4 {[%emt 0:00:08]} Nf6 {[%emt 0:00:03]} 5. Nc3 {[%emt 0:00:22]} a6 {[%emt 0:00:09]} 6. f3 {[%emt 0:00:43]} e5 {[%emt 0:00:15]} 7. Nb3 {[%emt 0:00:22]} Be6 {[%emt 0:00:11]} 8. Be3 {[%emt 0:00:39]} Be7 {[%emt 0:00:16]} 9. Qd2 {[%emt 0:01:52]} O-O {[%emt 0:00:08]} 10. O-O-O {[%emt 0:00:53]} Nbd7 {[%emt 0:00:06]} 11. g4 {[%emt 0:02:28]} b5 {[%emt 0:00:05]} 12. h4 {[%emt 0:05:24]} b4 {[%emt 0:00:06]} 13. Nd5 {[%emt 0:07:39]} Bxd5 {[%emt 0:00:07]} 14. exd5 {[%emt 0:00:07]} Nb6 {[%emt 0:00:25]} 15. Na5 {[%emt 0:00:58]} Nbxd5 {[%emt 0:20:56]} 16. Nc6 {[%emt 0:00:23]} Qc7 {[%emt 0:01:06]} 17. Nxe7+ {[%emt 0:00:15]} Nxe7 {[%emt 0:00:33]} 18. Qxd6 {[%emt 0:00:34]} Rfc8 {[%emt 0:02:16]} 19. Qxc7 {[%emt 0:09:38]} Rxc7 {[%emt 0:01:45]} 20. Rh2 {[%emt 0:05:28]} Nfd5 {[%emt 0:29:31]} 21. Bg1 {[%emt 0:06:06]} Nf4 {[%emt 0:21:54]} 22. Rhd2 {[%emt 0:05:19]} h5 {[%emt 0:02:56]} 23. Rd7 {[%emt 0:08:02]} Rac8 {[%emt 0:04:25]} 24. Rxc7 {[%emt 0:02:02]} Rxc7 {[%emt 0:00:13]} 25. gxh5 {[%emt 0:03:37]} Nf5 {[%emt 0:02:55]} 26. Bf2 {[%emt 0:01:51]} Rc6 {[%emt 0:03:32]} 27. Rd8+ {[%emt 0:01:58]} Kh7 {[%emt 0:00:11]} 28. Rb8 {[%emt 0:00:57]} Rh6 {[%emt 0:02:44]} 29. Rxb4 {[%emt 0:01:46]} Rxh5 {[%emt 0:01:11]} 30. Bxa6 {[%emt 0:04:44]} Nxh4 {[%emt 0:01:23]} 31. Bb7 {[%emt 0:01:26]} Nf5 {[%emt 0:02:46]} 32. Be4 {[%emt 0:02:16]} g6 {[%emt 0:00:53]} 33. Bc5 {[%emt 0:01:45]} Ng7 {[%emt 0:02:49]} 34. Rb7 {[%emt 0:05:35]} Nge6 {[%emt 0:00:16]} 35. Bd6 {[%emt 0:03:45]} Kg7 {[%emt 0:00:35]} 36. a4 {[%emt 0:01:13]} Nd4 {[%emt 0:00:35]} 37. a5 {[%emt 0:01:51]} Rh1+ {[%emt 0:00:17]} 38. Kd2 {[%emt 0:00:24]} Kh6 {[%emt 0:00:53]} 39. a6 {[%emt 0:01:20]} f5 {[%emt 0:00:32]} 40. a7 {[%emt 0:00:00]} fxe4 {[%emt 0:00:00]} 41. a8=Q {[%emt 0:03:21]} Rh2+ {[%emt 0:05:08]} 42. Kc3 {[%emt 0:04:34]} Rxc2+ {[%emt 0:02:58]} 43. Kb4 {[%emt 0:00:34]} Nd3+ {[%emt 0:04:01]} 44. Ka3 {[%emt 0:00:57]} Rc1 {[%emt 0:01:50]} 45. Qh8+ {[%emt 0:00:22]} Kg5 {[%emt 0:00:09]} 46. Be7+ {[%emt 0:02:34]} Kf4 {[%emt 0:00:21]} 47. Qf8+ {[%emt 0:09:02]} Kg3 {[%emt 0:01:54]} 48. Ka2 {[%emt 0:03:27]} exf3 {[%emt 0:01:00]} 49. Qh6 {[%emt 0:01:53]} Rd1 {[%emt 0:01:43]} 50. Bh4+ {[%emt 0:02:42]} Kg2 {[%emt 0:00:38]} 51. Qxg6+ {[%emt 0:00:43]} Kf1 {[%emt 0:00:14]} 52. Rg7 {[%emt 0:02:18]} Nb4+ {[%emt 0:00:22]} 53. Ka3 {[%emt 0:00:10]} Nbc2+ {[%emt 0:00:07]} 54. Qxc2 {[%emt 0:02:15]} Nxc2+ {[%emt 0:00:11]} 55. Kb3 {[%emt 0:00:39]} Nd4+ {[%emt 0:00:22]} 56. Kc4 {[%emt 0:00:22]} Nf5 {[%emt 0:00:16] Kd4} 0-1